[Event "European Online Club-ch-D 2021"]
[Site "Online"]
[Date "2021.03.27"]
[Round "9.6"]
[White "Pelletier, Yannick"]
[Black "Roubalik, Jakub"]
[Result "1/2-1/2"]
[ECO "E53"]
[WhiteElo "2581"]
[BlackElo "2391"]
[Annotator "ChessBase"]
[PlyCount "107"]
[EventDate "2021.03.27"]
[EventType "team-tourn"]
[EventCountry "NET"]
[SourceTitle "playchess.com"]
[Source "ChessBase"]
[SourceQuality "1"]
[TimeControl "900+5"]

1. d4 {[%emt 0:00:00]} Nf6 {[%emt 0:00:03]} 2. c4 {[%emt 0:00:03]} e6 {[%emt 0:00:01]} 3. Nc3 {[%emt 0:00:15]} Bb4 {[%emt 0:00:04]} 4. e3 {[%emt 0:00:03]} O-O {[%emt 0:00:12]} 5. Bd3 {[%emt 0:00:04]} d5 {[%emt 0:00:07]} 6. Nf3 {[%emt 0:00:07]} c5 {[%emt 0:00:13]} 7. O-O {[%emt 0:00:03]} Bxc3 {[%emt 0:00:14]} 8. bxc3 {[%emt 0:00:02]} dxc4 {[%emt 0:00:04]} 9. Bxc4 {[%emt 0:00:02]} Qc7 {[%emt 0:00:02]} 10. Bd3 {[%emt 0:00:45]} Nc6 {[%emt 0:00:40]} 11. e4 {[%emt 0:01:03]} e5 {[%emt 0:00:30]} 12. dxe5 {[%emt 0:02:24]} Ng4 {[%emt 0:01:17]} 13. Bf4 {[%emt 0:00:20]} Ngxe5 {[%emt 0:01:51]} 14. Nxe5 {[%emt 0:00:46]} Nxe5 {[%emt 0:00:05]} 15. Bc4 {[%emt 0:00:48]} Qe7 {[%emt 0:03:34]} 16. Bd5 {[%emt 0:00:05]} Re8 {[%emt 0:02:52]} 17. Rb1 {[%emt 0:00:47]} Rb8 {[%emt 0:01:00]} 18. c4 {[%emt 0:03:08]} b6 {[%emt 0:00:21]} 19. Qa4 {[%emt 0:02:00]} a6 {[%emt 0:00:54]} 20. Kh1 {[%emt 0:00:27]} b5 {[%emt 0:00:20]} 21. Qa5 {[%emt 0:00:13]} Qf6 {[%emt 0:01:22]} 22. Bxe5 {[%emt 0:00:29]} Qxe5 {[%emt 0:00:07]} 23. f4 {[%emt 0:00:11]} Qe7 {[%emt 0:00:06]} 24. cxb5 {[%emt 0:00:25]} axb5 {[%emt 0:00:02]} 25. Rxb5 {[%emt 0:00:03]} Rxb5 {[%emt 0:00:02]} 26. Qxb5 {[%emt 0:00:01]} Be6 {[%emt 0:00:02]} 27. h3 {[%emt 0:01:50]} Bxd5 {[%emt 0:00:12]} 28. exd5 {[%emt 0:00:00]} h5 {[%emt 0:00:22]} 29. d6 {[%emt 0:00:07]} Qe3 {[%emt 0:00:13]} 30. d7 {[%emt 0:00:17]} Rd8 {[%emt 0:00:02]} 31. Rd1 {[%emt 0:00:04]} Qxf4 {[%emt 0:00:25]} 32. Qxc5 {[%emt 0:00:06]} h4 {[%emt 0:00:06]} 33. Qc8 {[%emt 0:00:08]} Qf6 {[%emt 0:00:06]} 34. Re1 {[%emt 0:00:10]} Kh7 {[%emt 0:00:05]} 35. Qc7 {[%emt 0:00:11]} g6 {[%emt 0:00:09]} 36. a4 {[%emt 0:00:15]} Qf2 {[%emt 0:00:08]} 37. Rg1 {[%emt 0:00:11]} Qf6 {[%emt 0:00:05]} 38. a5 {[%emt 0:00:03]} Qe7 {[%emt 0:00:02]} 39. Rd1 {[%emt 0:00:04]} Qe2 {[%emt 0:00:01]} 40. Qc1 {[%emt 0:00:07]} Qb5 {[%emt 0:00:06]} 41. Qd2 {[%emt 0:00:07]} Qc6 {[%emt 0:00:04]} 42. Qd4 {[%emt 0:00:06]} Kg8 {[%emt 0:00:05]} 43. Qd5 {[%emt 0:00:06]} Qa4 {[%emt 0:00:05]} 44. Rd2 {[%emt 0:00:08]} Qa1+ {[%emt 0:00:06]} 45. Kh2 {[%emt 0:00:01]} Qa4 {[%emt 0:00:01]} 46. Rd4 {[%emt 0:00:03]} Qc2 {[%emt 0:00:06]} 47. Qd6 {[%emt 0:00:05]} Qa2 {[%emt 0:00:06]} 48. Rxh4 {[%emt 0:00:03]} Qxa5 {[%emt 0:00:04]} 49. Re4 {[%emt 0:00:08]} Kh7 {[%emt 0:00:06]} 50. Rf4 {[%emt 0:00:04]} Kg8 {[%emt 0:00:05]} 51. Qf6 {[%emt 0:00:05]} Rxd7 {[%emt 0:00:03]} 52. Rc4 {[%emt 0:00:06]} Qd8 {[%emt 0:00:07]} 53. Qxd8+ {[%emt 0:00:07]} Rxd8 {[%emt 0:00:01]} 54. h4 {[%emt 0:00:04]} 1/2-1/2

[Event "European Online Club-ch-D 2021"]
[Site "Online"]
[Date "2021.03.27"]
[Round "9.7"]
[White "Vymazal, Bronislav"]
[Black "Petkidis, Anthony"]
[Result "1-0"]
[ECO "C95"]
[WhiteElo "2350"]
[BlackElo "2401"]
[Annotator "NA"]
[PlyCount "177"]
[EventDate "2021.03.27"]
[EventType "team-tourn"]
[EventCountry "NET"]
[SourceTitle "playchess.com"]
[Source "ChessBase"]
[SourceQuality "1"]
[TimeControl "900+5"]

1. e4 {[%emt 0:00:00]} e5 {[%emt 0:00:03]} 2. Nf3 {[%emt 0:00:02]} Nc6 {[%emt 0:00:01]} 3. Bb5 {[%emt 0:00:02]} a6 {[%emt 0:00:02]} 4. Ba4 {[%emt 0:00:01]} Nf6 {[%emt 0:00:02]} 5. O-O {[%emt 0:00:02]} Be7 {[%emt 0:00:02]} 6. d3 {[%emt 0:00:02]} d6 {[%emt 0:00:09]} 7. c3 {[%emt 0:00:03]} O-O {[%emt 0:00:06]} 8. Nbd2 {[%emt 0:00:03]} Re8 {[%emt 0:00:02]} 9. h3 {[%emt 0:00:15]} Bf8 {[%emt 0:00:03]} 10. Re1 {[%emt 0:00:05]} b5 {[%emt 0:00:02]} 11. Bc2 {[%emt 0:00:02]} Bb7 {[%emt 0:00:07]} 12. d4 {[%emt 0:00:19]} Nb8 {[%emt 0:00:23]} 13. b3 {[%emt 0:01:00]} Nbd7 {[%emt 0:00:07]} 14. Bb2 {[%emt 0:00:03]} g6 {[%emt 0:00:07]} 15. a4 {[%emt 0:00:33]} Bg7 {[%emt 0:00:22]} 16. Bd3 {[%emt 0:00:36]} c6 {[%emt 0:00:31]} 17. Qc2 {[%emt 0:00:25]} Nh5 {[%emt 0:00:07]} 18. g3 {[%emt 0:00:21]} Rc8 {[%emt 0:01:38]} 19. axb5 {[%emt 0:01:10]} cxb5 {[%emt 0:00:20]} 20. d5 {[%emt 0:00:06]} Qb6 {[%emt 0:00:22]} 21. Kg2 {[%emt 0:00:40]} a5 {[%emt 0:00:05]} 22. c4 {[%emt 0:00:07]} b4 {[%emt 0:00:19]} 23. Nf1 {[%emt 0:00:20]} Nc5 {[%emt 0:00:10]} 24. Bc1 {[%emt 0:00:07]} f5 {[%emt 0:01:01]} 25. Rb1 {[%emt 0:00:58]} Rf8 {[%emt 0:00:48]} 26. Qe2 {[%emt 0:01:59]} Rce8 {[%emt 0:03:50]} 27. Bc2 {[%emt 0:00:18]} f4 {[%emt 0:00:38]} 28. g4 {[%emt 0:00:16]} Nf6 {[%emt 0:00:02]} 29. Rd1 {[%emt 0:00:41]} Bc8 {[%emt 0:00:05]} 30. Ne1 {[%emt 0:00:26]} h5 {[%emt 0:00:39]} 31. f3 {[%emt 0:00:32]} Bd7 {[%emt 0:00:17]} 32. Nh2 {[%emt 0:00:18]} Nh7 {[%emt 0:00:07]} 33. Nd3 {[%emt 0:00:04]} Bf6 {[%emt 0:00:18]} 34. Qf2 {[%emt 0:00:36]} Rc8 {[%emt 0:00:15]} 35. Bd2 {[%emt 0:00:05]} Qd8 {[%emt 0:00:18]} 36. Be1 {[%emt 0:00:03]} Kh8 {[%emt 0:00:10]} 37. Ra1 {[%emt 0:00:05]} Nb7 {[%emt 0:01:22]} 38. Kf1 {[%emt 0:00:13]} hxg4 {[%emt 0:00:22]} 39. hxg4 {[%emt 0:00:26]} Ng5 {[%emt 0:00:04]} 40. Qa7 {[%emt 0:00:45]} Qc7 {[%emt 0:00:50]} 41. Bf2 {[%emt 0:00:11]} Ra8 {[%emt 0:00:22]} 42. Qb6 {[%emt 0:00:03]} Rfc8 {[%emt 0:00:05]} 43. Qxc7 {[%emt 0:00:06]} Rxc7 {[%emt 0:00:00]} 44. Nxb4 {[%emt 0:00:04]} Nc5 {[%emt 0:00:16]} 45. Nd3 {[%emt 0:00:06]} Nxd3 {[%emt 0:00:13]} 46. Bxd3 {[%emt 0:00:02]} Kg7 {[%emt 0:00:01]} 47. b4 {[%emt 0:00:11]} Rh8 {[%emt 0:00:06]} 48. Kg2 {[%emt 0:00:15]} axb4 {[%emt 0:00:03]} 49. Rdb1 {[%emt 0:00:15]} Rb8 {[%emt 0:00:55]} 50. Rb3 {[%emt 0:00:13]} Be7 {[%emt 0:00:28]} 51. Rab1 {[%emt 0:00:13]} Rcb7 {[%emt 0:00:08]} 52. Be1 {[%emt 0:00:07]} Nf7 {[%emt 0:00:13]} 53. Rxb4 {[%emt 0:00:06]} Rxb4 {[%emt 0:00:03]} 54. Rxb4 {[%emt 0:00:01]} Rxb4 {[%emt 0:00:05]} 55. Bxb4 {[%emt 0:00:00]} Bd8 {[%emt 0:00:02]} 56. c5 {[%emt 0:00:14]} dxc5 {[%emt 0:00:04]} 57. Bxc5 {[%emt 0:00:00]} Kf6 {[%emt 0:00:04]} 58. Nf1 {[%emt 0:00:07]} Be7 {[%emt 0:00:02]} 59. Bb6 {[%emt 0:00:06]} Bd8 {[%emt 0:00:04]} 60. Ba7 {[%emt 0:00:09]} Nd6 {[%emt 0:00:05]} 61. Nd2 {[%emt 0:00:06]} Nc8 {[%emt 0:00:02]} 62. Bb8 {[%emt 0:00:08]} Nb6 {[%emt 0:00:19]} 63. g5+ {[%emt 0:00:49]} Kxg5 {[%emt 0:00:05]} 64. Bxe5 {[%emt 0:00:02]} Bf6 {[%emt 0:00:05]} 65. Bc7 {[%emt 0:00:03]} Bd4 {[%emt 0:00:06]} 66. Nc4 {[%emt 0:01:35]} Nxc4 {[%emt 0:00:03]} 67. Bxc4 {[%emt 0:00:01]} Be3 {[%emt 0:00:07]} 68. e5 {[%emt 0:00:03]} Kf5 {[%emt 0:00:05]} 69. Bd3+ {[%emt 0:00:10]} Kg5 {[%emt 0:00:04]} 70. Bd8+ {[%emt 0:00:04]} Kh6 {[%emt 0:00:03]} 71. e6 {[%emt 0:00:02]} Bc8 {[%emt 0:00:01]} 72. Bb5 {[%emt 0:00:06]} Bc5 {[%emt 0:00:08]} 73. e7 {[%emt 0:00:04]} Bxe7 {[%emt 0:00:01]} 74. Bxe7 {[%emt 0:00:02]} g5 {[%emt 0:00:01]} 75. d6 {[%emt 0:00:02]} g4 {[%emt 0:00:03]} 76. d7 {[%emt 0:00:07]} gxf3+ {[%emt 0:00:02]} 77. Kxf3 {[%emt 0:00:02]} Bxd7 {[%emt 0:00:01]} 78. Bxd7 {[%emt 0:00:02]} Kg6 {[%emt 0:00:03]} 79. Kxf4 {[%emt 0:00:02]} Kf7 {[%emt 0:00:05]} 80. Bd6 {[%emt 0:00:02]} Kg6 {[%emt 0:00:02]} 81. Be6 {[%emt 0:00:10]} Kf6 {[%emt 0:00:03]} 82. Bf5 {[%emt 0:00:04]} Kf7 {[%emt 0:00:01]} 83. Ke5 {[%emt 0:00:39]} Ke8 {[%emt 0:00:03]} 84. Bc7 {[%emt 0:00:06]} Ke7 {[%emt 0:00:02]} 85. Be6 {[%emt 0:00:02]} Ke8 {[%emt 0:00:03]} 86. Kf6 {[%emt 0:00:02]} Kf8 {[%emt 0:00:01]} 87. Bd7 {[%emt 0:00:07]} Kg8 {[%emt 0:00:01]} 88. Kg6 {[%emt 0:00:04]} Kh8 {[%emt 0:00:06]} 89. Bd6 {[%emt 0:00:04]} 1-0

[Event "European Online Club-ch-D 2021"]
[Site "Online"]
[Date "2021.03.27"]
[Round "9.9"]
[White "Tokhirjonova, Gulrukhbegim"]
[Black "Lupulescu, Constantin"]
[Result "1-0"]
[ECO "B44"]
[WhiteElo "2362"]
[BlackElo "2656"]
[Annotator "ChessBase"]
[PlyCount "85"]
[EventDate "2021.03.27"]
[EventType "team-tourn"]
[EventCountry "NET"]
[SourceTitle "playchess.com"]
[Source "ChessBase"]
[SourceQuality "1"]
[TimeControl "900+5"]

1. e4 {[%emt 0:00:00]} c5 {[%emt 0:00:02]} 2. Nf3 {[%emt 0:00:03]} d6 {[%emt 0:00:01]} 3. d4 {[%emt 0:00:01]} cxd4 {[%emt 0:00:01]} 4. Qxd4 {[%emt 0:00:01]} a6 {[%emt 0:00:17]} 5. c4 {[%emt 0:00:27]} Nc6 {[%emt 0:00:02]} 6. Qd1 {[%emt 0:00:03]} Nf6 {[%emt 0:00:14]} 7. Nc3 {[%emt 0:00:01]} e6 {[%emt 0:00:04]} 8. Be2 {[%emt 0:00:07]} Be7 {[%emt 0:00:02]} 9. O-O {[%emt 0:00:01]} O-O {[%emt 0:00:01]} 10. Nd4 {[%emt 0:00:09]} Qc7 {[%emt 0:00:20]} 11. Be3 {[%emt 0:00:05]} Ne5 {[%emt 0:00:16]} 12. Rc1 {[%emt 0:00:06]} b6 {[%emt 0:00:02]} 13. b3 {[%emt 0:00:03]} Bb7 {[%emt 0:00:03]} 14. f3 {[%emt 0:00:04]} Rac8 {[%emt 0:00:07]} 15. Kh1 {[%emt 0:00:03]} Rfe8 {[%emt 0:00:04]} 16. Na4 {[%emt 0:00:05]} Ned7 {[%emt 0:00:09]} 17. b4 {[%emt 0:00:07]} Qb8 {[%emt 0:00:20]} 18. Qd2 {[%emt 0:01:14]} h5 {[%emt 0:00:36]} 19. Rc2 {[%emt 0:00:10]} h4 {[%emt 0:00:05]} 20. Rb1 {[%emt 0:00:13]} h3 {[%emt 0:01:15]} 21. gxh3 {[%emt 0:00:17]} Nxe4 {[%emt 0:01:26]} 22. fxe4 {[%emt 0:01:54]} Bxe4+ {[%emt 0:00:00]} 23. Kg1 {[%emt 0:00:07]} e5 {[%emt 0:04:13]} 24. Nf3 {[%emt 0:00:30]} d5 {[%emt 0:00:08]} 25. Rd1 {[%emt 0:00:41]} d4 {[%emt 0:00:39]} 26. Rcc1 {[%emt 0:00:09]} dxe3 {[%emt 0:02:24]} 27. Qxd7 {[%emt 0:00:53]} Bc6 {[%emt 0:00:02]} 28. Qf5 {[%emt 0:00:01]} g6 {[%emt 0:00:07]} 29. Qc2 {[%emt 0:00:32]} Bxb4 {[%emt 0:01:10]} 30. Rf1 {[%emt 0:00:24]} Qc7 {[%emt 0:01:03]} 31. Ng5 {[%emt 0:00:51]} f5 {[%emt 0:00:04]} 32. c5 {[%emt 0:00:31]} bxc5 {[%emt 0:00:20]} 33. Qb3+ {[%emt 0:00:26]} Kg7 {[%emt 0:00:13]} 34. Nxc5 {[%emt 0:00:12]} Bxc5 {[%emt 0:00:09]} 35. Rxc5 {[%emt 0:00:03]} Qe7 {[%emt 0:00:10]} 36. h4 {[%emt 0:00:52]} f4 {[%emt 0:00:22]} 37. Rfc1 {[%emt 0:00:16]} Bd7 {[%emt 0:00:06]} 38. Rc7 {[%emt 0:00:13]} Kh6 {[%emt 0:00:46]} 39. Qb7 {[%emt 0:00:52]} Rxc7 {[%emt 0:00:28]} 40. Rxc7 {[%emt 0:00:03]} Rd8 {[%emt 0:00:03]} 41. Qd5 {[%emt 0:00:23]} Qb4 {[%emt 0:00:08]} 42. Qd1 {[%emt 0:01:49]} Qb6 {[%emt 0:00:14]} 43. Rxd7 {[%emt 0:00:33]} 1-0

[Event "European Online Club-ch-D 2021"]
[Site "Online"]
[Date "2021.03.27"]
[Round "9.10"]
[White "Dolana, Andrei-Theodor"]
[Black "Nandhidhaa, P V"]
[Result "1/2-1/2"]
[ECO "D40"]
[WhiteElo "2359"]
[BlackElo "2365"]
[Annotator "NA"]
[PlyCount "291"]
[EventDate "2021.03.27"]
[EventType "team-tourn"]
[EventCountry "NET"]
[SourceTitle "playchess.com"]
[Source "ChessBase"]
[SourceQuality "1"]
[TimeControl "900+5"]

1. Nf3 {[%emt 0:00:00]} c5 {[%emt 0:00:05]} 2. c4 {[%emt 0:00:03]} b6 {[%emt 0:00:03]} 3. e3 {[%emt 0:00:26]} Bb7 {[%emt 0:00:05]} 4. d4 {[%emt 0:00:02]} cxd4 {[%emt 0:00:10]} 5. exd4 {[%emt 0:00:02]} e6 {[%emt 0:00:05]} 6. Bd3 {[%emt 0:00:02]} Nf6 {[%emt 0:00:14]} 7. O-O {[%emt 0:00:03]} Be7 {[%emt 0:00:12]} 8. Nc3 {[%emt 0:00:03]} O-O {[%emt 0:00:03]} 9. Bg5 {[%emt 0:01:42]} d5 {[%emt 0:01:06]} 10. a3 {[%emt 0:00:07]} dxc4 {[%emt 0:00:10]} 11. Bxc4 {[%emt 0:00:03]} Nc6 {[%emt 0:00:40]} 12. Qd3 {[%emt 0:00:12]} Nd5 {[%emt 0:00:50]} 13. Ne4 {[%emt 0:02:50]} h6 {[%emt 0:02:25]} 14. Bd2 {[%emt 0:01:11]} Nf6 {[%emt 0:00:07]} 15. Nc3 {[%emt 0:00:22]} Na5 {[%emt 0:00:30]} 16. Ba2 {[%emt 0:00:03]} Bxf3 {[%emt 0:00:37]} 17. Qxf3 {[%emt 0:00:04]} Qxd4 {[%emt 0:00:03]} 18. Bf4 {[%emt 0:03:01]} e5 {[%emt 0:01:35]} 19. Bg3 {[%emt 0:00:59]} e4 {[%emt 0:01:12]} 20. Qe2 {[%emt 0:02:35]} Qd3 {[%emt 0:00:48]} 21. Rfe1 {[%emt 0:00:06]} Qxe2 {[%emt 0:00:26]} 22. Rxe2 {[%emt 0:00:03]} Nc6 {[%emt 0:00:29]} 23. Nxe4 {[%emt 0:01:42]} Nd4 {[%emt 0:00:09]} 24. Nxf6+ {[%emt 0:00:03]} Bxf6 {[%emt 0:00:06]} 25. Rd2 {[%emt 0:00:01]} Rad8 {[%emt 0:00:35]} 26. Rad1 {[%emt 0:00:07]} Rfe8 {[%emt 0:01:29]} 27. Kf1 {[%emt 0:00:03]} Rc8 {[%emt 0:00:27]} 28. Bf4 {[%emt 0:00:29]} g5 {[%emt 0:00:20]} 29. Bd6 {[%emt 0:00:40]} Nf5 {[%emt 0:00:33]} 30. Bg3 {[%emt 0:00:12]} Re7 {[%emt 0:00:26]} 31. b4 {[%emt 0:00:10]} Kg7 {[%emt 0:00:24]} 32. Rd3 {[%emt 0:00:07]} h5 {[%emt 0:00:20]} 33. Rf3 {[%emt 0:00:04]} Nd4 {[%emt 0:00:06]} 34. Rfd3 {[%emt 0:00:05]} Rc2 {[%emt 0:00:25]} 35. Bb3 {[%emt 0:00:02]} Rb2 {[%emt 0:00:05]} 36. Bc4 {[%emt 0:00:07]} b5 {[%emt 0:00:05]} 37. Bd5 {[%emt 0:00:03]} h4 {[%emt 0:00:07]} 38. Bd6 {[%emt 0:00:08]} Rd7 {[%emt 0:00:21]} 39. Bc5 {[%emt 0:00:07]} Rxd5 {[%emt 0:00:07]} 40. Bxd4 {[%emt 0:00:01]} Bxd4 {[%emt 0:00:03]} 41. Rxd4 {[%emt 0:00:00]} Rxd4 {[%emt 0:00:08]} 42. Rxd4 {[%emt 0:00:00]} Rb3 {[%emt 0:00:05]} 43. Rd5 {[%emt 0:00:02]} f6 {[%emt 0:00:02]} 44. Rd7+ {[%emt 0:00:04]} Kg6 {[%emt 0:00:01]} 45. Rxa7 {[%emt 0:00:00]} Rb2 {[%emt 0:00:03]} 46. Ra5 {[%emt 0:00:09]} Ra2 {[%emt 0:00:02]} 47. Rxb5 {[%emt 0:00:02]} Rxa3 {[%emt 0:00:01]} 48. Rc5 {[%emt 0:00:04]} Ra2 {[%emt 0:00:03]} 49. b5 {[%emt 0:00:20]} Rb2 {[%emt 0:00:01]} 50. g4 {[%emt 0:00:02]} h3 {[%emt 0:00:09]} 51. Rc3 {[%emt 0:00:15]} Rxb5 {[%emt 0:00:08]} 52. Rxh3 {[%emt 0:00:00]} Rb4 {[%emt 0:00:03]} 53. Rg3 {[%emt 0:00:03]} f5 {[%emt 0:00:02]} 54. gxf5+ {[%emt 0:00:12]} Kxf5 {[%emt 0:00:01]} 55. Kg2 {[%emt 0:00:01]} g4 {[%emt 0:00:04]} 56. Ra3 {[%emt 0:00:02]} Rb5 {[%emt 0:00:09]} 57. Kg3 {[%emt 0:00:08]} Kg5 {[%emt 0:00:02]} 58. Re3 {[%emt 0:00:02]} Ra5 {[%emt 0:00:02]} 59. Rb3 {[%emt 0:00:01]} Rc5 {[%emt 0:00:01]} 60. Re3 {[%emt 0:00:06]} Rb5 {[%emt 0:00:02]} 61. Re8 {[%emt 0:00:02]} Rb3+ {[%emt 0:00:02]} 62. Kg2 {[%emt 0:00:01]} Ra3 {[%emt 0:00:02]} 63. Re5+ {[%emt 0:00:09]} Kf4 {[%emt 0:00:03]} 64. Rb5 {[%emt 0:00:05]} Rc3 {[%emt 0:00:01]} 65. Rb8 {[%emt 0:00:04]} Ra3 {[%emt 0:00:02]} 66. Rf8+ {[%emt 0:00:02]} Kg5 {[%emt 0:00:02]} 67. Rg8+ {[%emt 0:00:01]} Kf4 {[%emt 0:00:01]} 68. Re8 {[%emt 0:00:01]} Rb3 {[%emt 0:00:03]} 69. Rf8+ {[%emt 0:00:08]} Kg5 {[%emt 0:00:02]} 70. Re8 {[%emt 0:00:01]} Kf4 {[%emt 0:00:03]} 71. Re3 {[%emt 0:00:02]} Rb4 {[%emt 0:00:17]} 72. Ra3 {[%emt 0:00:02]} Rc4 {[%emt 0:00:02]} 73. Ra8 {[%emt 0:00:14]} Rc3 {[%emt 0:00:04]} 74. Rh8 {[%emt 0:00:09]} Ra3 {[%emt 0:00:03]} 75. Rh4 {[%emt 0:00:01]} Kg5 {[%emt 0:00:02]} 76. Rh8 {[%emt 0:00:02]} Kf4 {[%emt 0:00:01]} 77. Rf8+ {[%emt 0:00:20]} Kg5 {[%emt 0:00:03]} 78. Re8 {[%emt 0:00:02]} Kf4 {[%emt 0:00:02]} 79. Re3 {[%emt 0:00:01]} Ra4 {[%emt 0:00:03]} 80. h3 {[%emt 0:00:01]} gxh3+ {[%emt 0:00:04]} 81. Rxh3 {[%emt 0:00:00]} Ra2 {[%emt 0:00:08]} 82. Rh4+ {[%emt 0:00:06]} Kg5 {[%emt 0:00:05]} 83. Rb4 {[%emt 0:00:01]} Ra3 {[%emt 0:00:07]} 84. f3 {[%emt 0:00:01]} Ra1 {[%emt 0:00:08]} 85. Rb2 {[%emt 0:00:27]} Kf4 {[%emt 0:00:05]} 86. Kf2 {[%emt 0:00:02]} Ra4 {[%emt 0:00:08]} 87. Re2 {[%emt 0:00:06]} Rb4 {[%emt 0:00:02]} 88. Rd2 {[%emt 0:00:02]} Ra4 {[%emt 0:00:01]} 89. Ke2 {[%emt 0:00:02]} Rb4 {[%emt 0:00:04]} 90. Ra2 {[%emt 0:00:01]} Rc4 {[%emt 0:00:03]} 91. Ra8 {[%emt 0:00:04]} Rc2+ {[%emt 0:00:18]} 92. Kd3 {[%emt 0:00:02]} Rf2 {[%emt 0:00:05]} 93. Rf8+ {[%emt 0:00:01]} Ke5 {[%emt 0:00:31]} 94. Ke3 {[%emt 0:00:06]} Ra2 {[%emt 0:00:03]} 95. f4+ {[%emt 0:00:08]} Ke6 {[%emt 0:00:01]} 96. Kf3 {[%emt 0:00:02]} Ra1 {[%emt 0:00:14]} 97. Re8+ {[%emt 0:00:29]} Kf6 {[%emt 0:00:09]} 98. Re2 {[%emt 0:00:03]} Rb1 {[%emt 0:00:11]} 99. Rd2 {[%emt 0:00:05]} Ra1 {[%emt 0:00:09]} 100. Ke4 {[%emt 0:00:02]} Ra4+ {[%emt 0:00:03]} 101. Ke3 {[%emt 0:00:02]} Ra3+ {[%emt 0:00:01]} 102. Ke4 {[%emt 0:00:08]} Ra4+ {[%emt 0:00:02]} 103. Kf3 {[%emt 0:00:01]} Ra1 {[%emt 0:00:02]} 104. Rc2 {[%emt 0:00:07]} Kf5 {[%emt 0:00:05]} 105. Rc5+ {[%emt 0:00:02]} Kf6 {[%emt 0:00:02]} 106. Rc2 {[%emt 0:00:12]} Kf5 {[%emt 0:00:02]} 107. Rc5+ {[%emt 0:00:12]} Kf6 {[%emt 0:00:01]} 108. Rb5 {[%emt 0:00:05]} Rf1+ {[%emt 0:00:10]} 109. Kg3 {[%emt 0:00:01]} Rg1+ {[%emt 0:00:03]} 110. Kf3 {[%emt 0:00:02]} Rf1+ {[%emt 0:00:02]} 111. Ke3 {[%emt 0:00:01]} Re1+ {[%emt 0:00:05]} 112. Kf2 {[%emt 0:00:01]} Ra1 {[%emt 0:00:02]} 113. Rd5 {[%emt 0:00:14]} Rb1 {[%emt 0:00:05]} 114. Kg2 {[%emt 0:00:07]} Ra1 {[%emt 0:00:04]} 115. Kf3 {[%emt 0:00:01]} Rf1+ {[%emt 0:00:02]} 116. Kg3 {[%emt 0:00:01]} Rg1+ {[%emt 0:00:02]} 117. Kf2 {[%emt 0:00:08]} Ra1 {[%emt 0:00:02]} 118. Re5 {[%emt 0:00:09]} Rb1 {[%emt 0:00:12]} 119. Ke2 {[%emt 0:00:11]} Ra1 {[%emt 0:00:06]} 120. Kf3 {[%emt 0:00:01]} Rf1+ {[%emt 0:00:01]} 121. Kg4 {[%emt 0:00:03]} Rg1+ {[%emt 0:00:02]} 122. Kh4 {[%emt 0:00:02]} Rh1+ {[%emt 0:00:01]} 123. Kg3 {[%emt 0:00:01]} Rg1+ {[%emt 0:00:02]} 124. Kf3 {[%emt 0:00:01]} Rf1+ {[%emt 0:00:02]} 125. Ke3 {[%emt 0:00:02]} Re1+ {[%emt 0:00:02]} 126. Kd4 {[%emt 0:00:01]} Rxe5 {[%emt 0:00:10]} 127. fxe5+ {[%emt 0:00:01]} Ke6 {[%emt 0:00:01]} 128. Ke4 {[%emt 0:00:01]} Ke7 {[%emt 0:00:02]} 129. Kd5 {[%emt 0:00:00]} Kd7 {[%emt 0:00:03]} 130. Kc5 {[%emt 0:00:01]} Ke6 {[%emt 0:00:02]} 131. Kd4 {[%emt 0:00:00]} Ke7 {[%emt 0:00:02]} 132. Ke4 {[%emt 0:00:00]} Ke6 {[%emt 0:00:03]} 133. Kf4 {[%emt 0:00:00]} Ke7 {[%emt 0:00:02]} 134. Kf5 {[%emt 0:00:00]} Kf7 {[%emt 0:00:01]} 135. e6+ {[%emt 0:00:00]} Ke7 {[%emt 0:00:02]} 136. Ke5 {[%emt 0:00:00]} Ke8 {[%emt 0:00:03]} 137. Kd6 {[%emt 0:00:00]} Kd8 {[%emt 0:00:02]} 138. Kd5 {[%emt 0:00:00]} Ke7 {[%emt 0:00:03]} 139. Ke5 {[%emt 0:00:00]} Ke8 {[%emt 0:00:02]} 140. Kf6 {[%emt 0:00:00]} Kf8 {[%emt 0:00:02]} 141. Kg6 {[%emt 0:00:01]} Ke7 {[%emt 0:00:02]} 142. Kf5 {[%emt 0:00:00]} Ke8 {[%emt 0:00:08]} 143. Ke5 {[%emt 0:00:01]} Ke7 {[%emt 0:00:01]} 144. Kd5 {[%emt 0:00:02]} Ke8 {[%emt 0:00:04]} 145. Ke4 {[%emt 0:00:01]} Ke7 {[%emt 0:00:01]} 146. Ke5 {[%emt 0:00:00]} 1/2-1/2

[Event "European Online Club-ch-D 2021"]
[Site "Online"]
[Date "2021.03.27"]
[Round "9.11"]
[White "Dauletova, Gulmira"]
[Black "Toma, Radu-Cristian"]
[Result "0-1"]
[ECO "B36"]
[WhiteElo "2285"]
[BlackElo "2385"]
[Annotator "NA"]
[PlyCount "84"]
[EventDate "2021.03.27"]
[EventType "team-tourn"]
[EventCountry "NET"]
[SourceTitle "playchess.com"]
[Source "ChessBase"]
[SourceQuality "1"]
[TimeControl "900+5"]

1. e4 {[%emt 0:00:00]} c5 {[%emt 0:00:03]} 2. Nf3 {[%emt 0:00:03]} Nc6 {[%emt 0:00:01]} 3. d4 {[%emt 0:00:04]} cxd4 {[%emt 0:00:02]} 4. Nxd4 {[%emt 0:00:01]} g6 {[%emt 0:00:02]} 5. c4 {[%emt 0:00:12]} Nf6 {[%emt 0:00:03]} 6. Nc3 {[%emt 0:00:03]} Nxd4 {[%emt 0:00:02]} 7. Qxd4 {[%emt 0:00:03]} d6 {[%emt 0:00:01]} 8. Be2 {[%emt 0:01:09]} Bg7 {[%emt 0:00:05]} 9. Be3 {[%emt 0:00:02]} O-O {[%emt 0:00:01]} 10. Qd2 {[%emt 0:00:03]} a5 {[%emt 0:00:09]} 11. Rd1 {[%emt 0:00:38]} Bd7 {[%emt 0:00:42]} 12. b3 {[%emt 0:00:45]} a4 {[%emt 0:03:57]} 13. b4 {[%emt 0:00:06]} Rc8 {[%emt 0:00:02]} 14. f3 {[%emt 0:00:12]} Be6 {[%emt 0:04:06]} 15. Nd5 {[%emt 0:01:01]} b5 {[%emt 0:01:02]} 16. Nb6 {[%emt 0:04:26]} Rb8 {[%emt 0:00:20]} 17. c5 {[%emt 0:01:00]} Nd7 {[%emt 0:00:23]} 18. Bxb5 {[%emt 0:00:52]} Nxb6 {[%emt 0:00:33]} 19. cxb6 {[%emt 0:00:12]} a3 {[%emt 0:00:18]} 20. Bd3 {[%emt 0:02:22]} Rxb6 {[%emt 0:00:41]} 21. O-O {[%emt 0:01:56]} Rb7 {[%emt 0:01:08]} 22. b5 {[%emt 0:00:50]} Bd7 {[%emt 0:00:05]} 23. b6 {[%emt 0:00:04]} Rxb6 {[%emt 0:00:10]} 24. Bxb6 {[%emt 0:00:03]} Qxb6+ {[%emt 0:00:05]} 25. Kh1 {[%emt 0:00:01]} Be6 {[%emt 0:00:03]} 26. Rb1 {[%emt 0:00:05]} Bb2 {[%emt 0:00:02]} 27. f4 {[%emt 0:00:03]} Bxa2 {[%emt 0:00:03]} 28. f5 {[%emt 0:00:08]} Bxb1 {[%emt 0:00:10]} 29. Bxb1 {[%emt 0:00:04]} Qd4 {[%emt 0:00:33]} 30. Qc2 {[%emt 0:00:14]} Qc5 {[%emt 0:00:20]} 31. Qb3 {[%emt 0:00:05]} Bf6 {[%emt 0:00:13]} 32. fxg6 {[%emt 0:00:15]} hxg6 {[%emt 0:00:05]} 33. e5 {[%emt 0:00:15]} Qxe5 {[%emt 0:00:33]} 34. Bxg6 {[%emt 0:00:02]} Kg7 {[%emt 0:00:16]} 35. Bb1 {[%emt 0:00:03]} Rh8 {[%emt 0:00:03]} 36. h3 {[%emt 0:00:20]} Qc3 {[%emt 0:00:23]} 37. Qd1 {[%emt 0:00:12]} Qd4 {[%emt 0:00:35]} 38. Qf3 {[%emt 0:00:04]} Qc4 {[%emt 0:00:11]} 39. Qg3+ {[%emt 0:00:04]} Kf8 {[%emt 0:00:02]} 40. Rg1 {[%emt 0:00:06]} a2 {[%emt 0:00:04]} 41. Bd3 {[%emt 0:00:03]} Qc3 {[%emt 0:00:04]} 42. Qf3 {[%emt 0:00:04]} a1=Q {[%emt 0:00:07]} 0-1